bitfinex-derivatives/quotes_ETHF0:USTF0_20260119
["timestamp","ask_amount","ask_price","bid_price","bid_amount"]
[1768854315791,0.81576209,3221.9,3220.5,0.15533]
[1768854315991,0.81576209,3221.8,3220.5,0.15533]
[1768854316192,0.42131995,3222.0,3220.5,0.15533]
[1768854316393,0.00324737,3222.1,3220.5,0.15533]
[1768854316394,1.70782657,3221.8,3220.5,0.15533]
[1768854316593,0.81575357,3221.7,3220.5,0.15533]
[1768854318603,0.81575357,3221.7,3220.3,0.00226221]
[1768854318798,1.23707352,3221.7,3220.3,0.00226221]
[1768854318993,0.81575357,3221.6,3220.3,0.00226221]
[1768854319196,0.42131995,3221.7,3220.3,0.00226221]
[1768854319397,0.81560758,3221.6,3220.3,0.00226221]
[1768854319597,0.42131995,3221.7,3220.3,0.00226221]
[1768854319794,0.81560758,3221.6,3220.3,0.00226221]
[1768854320001,0.42131995,3221.7,3220.3,0.00226221]
[1768854322108,0.81557303,3221.6,3220.3,0.00226221]
[1768854322301,0.42131995,3221.7,3220.3,0.00226221]
[1768854323110,0.81558519,3221.6,3220.3,0.00226221]
[1768854323309,0.42131995,3221.7,3220.3,0.00226221]
[1768854324106,0.4378939,3221.5,3220.3,0.00226221]
[1768854324403,3.02050662,3221.9,3220.3,0.00226221]
[1768854324607,0.81561695,3221.8,3220.3,0.00226221]
[1768854324809,0.81561695,3221.7,3220.3,0.00226221]
[1768854325005,0.81561695,3221.6,3220.3,0.00226221]
[1768854325207,3.02050662,3221.9,3220.3,0.00226221]
[1768854325407,2.54934754,3221.8,3220.3,0.45544573]
[1768854325712,0.81534754,3221.7,3220.3,0.45544573]
[1768854325906,1.734,3221.8,3220.3,0.45544573]
[1768854326107,0.81529566,3221.7,3220.3,0.45544573]
[1768854326309,1.734,3221.8,3220.3,0.45544573]
[1768854326509,0.81533869,3221.7,3220.3,0.45544573]
[1768854326703,1.734,3221.8,3220.3,0.45544573]
[1768854326906,0.81533882,3221.7,3220.3,0.45544573]
[1768854327105,0.4378939,3222.0,3220.3,0.45544573]
[1768854327304,2.54940876,3221.9,3220.3,0.45544573]
[1768854327506,0.81540876,3221.8,3220.3,0.45544573]
[1768854327709,0.81540876,3221.7,3220.3,0.45544573]
[1768854327910,1.734,3221.9,3220.3,0.45544573]
[1768854328109,0.81540861,3221.8,3220.3,0.45544573]
[1768854328311,0.81540861,3221.7,3220.3,0.45544573]
[1768854328514,1.734,3221.9,3220.3,0.45544573]
[1768854328709,0.81547395,3221.8,3220.3,0.45544573]
[1768854328912,0.81547395,3221.7,3220.3,0.45544573]
[1768854329110,1.734,3221.9,3220.3,0.45544573]
[1768854329310,0.81555944,3221.8,3220.3,0.45544573]
[1768854329511,0.81555944,3221.7,3220.3,0.45544573]
[1768854329710,1.734,3221.9,3220.3,0.45544573]
[1768854329910,0.81556126,3221.8,3220.3,0.45544573]
[1768854330112,0.81556126,3221.7,3220.3,0.45544573]
[1768854330312,1.734,3221.9,3220.3,0.45544573]
[1768854330512,0.81556389,3221.8,3220.3,0.45544573]
[1768854330708,0.81556389,3221.7,3220.3,0.45544573]
[1768854331015,1.734,3221.9,3220.3,0.45544573]
[1768854331211,0.81555404,3221.8,3220.3,0.45544573]
[1768854331411,1.25344794,3221.7,3220.3,0.45544573]
[1768854331621,0.81555404,3221.6,3220.3,0.45544573]
[1768854335125,0.81555404,3221.6,3220.3,0.00226221]
[1768854337719,1.25344794,3221.6,3220.3,0.00226221]
[1768854337926,0.4378939,3221.6,3220.3,0.00226221]
[1768854344637,1.734,3221.9,3220.3,0.42089866]
[1768854344937,0.81602924,3221.8,3220.3,0.42089866]
[1768854345127,0.81602924,3221.7,3220.3,0.42089866]
[1768854345327,0.81602924,3221.6,3220.3,0.42089866]
[1768854345529,1.734,3221.9,3220.3,0.42089866]
[1768854345732,0.81613943,3221.8,3220.3,0.42089866]
[1768854345929,0.81613943,3221.7,3220.3,0.42089866]
[1768854346129,0.81613943,3221.6,3220.3,0.42089866]
[1768854346336,2.18060428,3222.0,3220.3,0.42089866]
[1768854346537,0.81612636,3221.9,3220.3,0.42089866]
[1768854346736,0.81612636,3221.8,3220.3,0.42089866]
[1768854346935,0.81612636,3221.7,3220.3,0.42089866]
[1768854347136,0.81612636,3221.6,3220.3,0.42089866]
[1768854347335,2.18060428,3222.0,3220.3,0.42089866]
[1768854347538,0.81611728,3221.9,3220.3,0.42089866]
[1768854347733,0.81611728,3221.8,3220.3,0.42089866]
[1768854347933,0.81611728,3221.7,3220.3,0.42089866]
[1768854348135,0.81611728,3221.6,3220.3,0.42089866]
[1768854348335,2.18060428,3222.0,3220.3,0.42089866]
[1768854348536,0.8161348,3221.9,3220.3,0.42089866]
[1768854348736,0.8161348,3221.8,3220.3,0.42089866]
[1768854348938,0.8161348,3221.7,3220.3,0.42089866]
[1768854349240,0.8161348,3221.6,3220.3,0.42089866]
[1768854349437,2.18060428,3222.0,3220.3,0.42089866]
[1768854349638,0.81613084,3221.9,3220.3,0.42089866]
[1768854349838,0.81613084,3221.8,3220.3,0.42089866]
[1768854350141,0.81613084,3221.7,3220.3,0.42089866]
[1768854350339,0.81613084,3221.6,3220.3,0.42089866]
[1768854350634,2.18060428,3222.0,3220.3,0.42089866]
[1768854350841,0.81612446,3221.9,3220.3,0.42089866]
[1768854351138,0.81612446,3221.8,3220.3,0.42089866]
[1768854351336,0.81612446,3221.7,3220.3,0.42089866]
[1768854351637,0.81612446,3221.6,3220.3,0.42089866]
[1768854351830,0.15850737,3222.1,3220.5,0.41863645]
[1768854352028,0.81609497,3222.0,3220.5,0.41863645]
[1768854352330,0.81609497,3221.9,3220.5,0.41863645]
[1768854352530,0.81609497,3221.8,3220.5,0.41863645]
[1768854352732,0.81609497,3221.7,3220.5,0.41863645]
[1768854352937,0.15850737,3222.1,3220.5,0.41863645]
[1768854353237,0.81598113,3222.0,3220.5,0.41863645]
[1768854353434,0.81598113,3221.9,3220.5,0.41863645]
[1768854353637,0.81598113,3221.8,3220.5,0.41863645]
[1768854353838,0.81598113,3221.7,3220.5,0.41863645]
[1768854354037,0.15850737,3222.1,3220.5,0.41863645]
[1768854354238,0.8145246,3222.0,3220.5,0.41863645]
[1768854354543,0.8145246,3221.9,3220.5,0.41863645]
[1768854354741,0.8145246,3221.8,3220.5,0.41863645]
[1768854354940,0.8145246,3221.7,3220.5,0.41863645]
[1768854355140,0.00324737,3222.1,3220.5,0.41863645]
[1768854355342,0.81410526,3222.0,3220.5,0.41863645]
[1768854355638,0.81410526,3221.9,3220.5,0.41863645]
[1768854355839,0.81410526,3221.8,3220.5,0.41863645]
[1768854356044,0.81410526,3221.7,3220.5,0.41863645]
[1768854356344,0.00324737,3222.1,3220.5,0.41863645]
[1768854356535,0.81406629,3222.0,3220.5,0.41863645]
[1768854356734,0.81406629,3221.9,3220.5,0.41863645]
[1768854356938,0.81406629,3221.8,3220.5,0.41863645]
[1768854357242,0.81406629,3221.7,3220.5,0.41863645]
[1768854357443,0.00324737,3222.1,3220.5,0.41863645]
[1768854357642,0.8140385,3222.0,3220.5,0.41863645]
[1768854357844,0.8140385,3221.9,3220.5,0.41863645]
[1768854358145,0.8140385,3221.8,3220.5,0.41863645]
[1768854358346,0.00324737,3222.1,3220.5,0.41863645]
[1768854358642,0.81392172,3222.0,3220.7,0.15532]
[1768854358839,0.81392172,3221.9,3220.7,0.15532]
[1768854359041,0.81392172,3221.8,3220.7,0.15532]
[1768854359242,0.00324737,3222.1,3220.7,0.15532]
[1768854359442,0.81384746,3222.0,3220.7,0.15532]
[1768854359648,0.81384746,3221.9,3220.7,0.15532]
[1768854359845,0.81384746,3221.8,3220.7,0.15532]
[1768854360143,0.00324737,3222.1,3220.7,0.15532]
[1768854360443,0.81383923,3222.0,3220.7,0.15532]
[1768854360643,0.81383923,3221.9,3220.7,0.15532]
[1768854360841,0.81383923,3221.8,3220.7,0.15532]
[1768854361049,0.00324737,3222.1,3220.7,0.15532]
[1768854361240,0.81383919,3222.0,3220.7,0.15532]
[1768854361440,0.81383919,3221.9,3220.7,0.15532]
[1768854361641,0.00324737,3222.1,3220.7,0.15532]
[1768854361845,0.81377875,3222.0,3220.7,0.15532]
[1768854362149,0.00324737,3222.1,3220.8,0.44347684]
[1768854362443,0.81246248,3222.0,3220.8,0.44347684]
[1768854362643,0.00324737,3222.1,3220.8,0.44347684]
[1768854362846,0.81245713,3222.0,3220.8,0.44347684]
[1768854363034,0.00324737,3222.1,3220.8,0.44347684]
[1768854363232,0.81236091,3222.0,3220.8,0.44347684]
[1768854363444,0.00324737,3222.1,3220.8,0.44347684]
[1768854363646,0.8123525,3222.0,3220.8,0.44347684]
[1768854363846,0.00324737,3222.1,3220.8,0.44347684]
[1768854364044,0.81235252,3222.0,3220.8,0.44347684]
[1768854364245,0.00324737,3222.1,3220.8,0.44347684]
[1768854364445,0.81226721,3222.0,3220.8,0.44347684]
[1768854364641,0.00324737,3222.1,3220.8,0.44347684]
[1768854364848,0.00324737,3222.1,3221.0,1.28578912]
[1768854370050,1.28578912,3222.0,3220.8,0.44347684]
[1768854371057,0.00324737,3222.1,3220.8,0.44347684]
[1768854371550,0.00324737,3222.1,3221.1,1.28578912]
[1768854372658,0.00324737,3222.1,3221.1,0.44347684]
[1768854373159,1.28903649,3222.1,3220.7,1.88459596]
[1768854373647,1.28903649,3222.1,3220.8,0.44347684]
[1768854374355,0.42020089,3222.0,3220.7,0.15533]
[1768854374654,1.28578912,3222.0,3220.7,0.15533]
[1768854382560,1.28578912,3222.0,3220.7,0.59880684]
[1768854382855,0.00324737,3222.1,3221.0,1.74728405]
[1768854385961,1.28903649,3222.1,3221.0,0.46149493]
[1768854392270,0.00324737,3222.1,3221.0,0.46149493]
[1768854393161,0.00324737,3222.1,3221.0,1.74728405]
[1768854396171,0.00324737,3222.1,3221.1,0.46149493]
[1768854398875,0.00324737,3222.1,3221.3,1.28578912]
[1768854399673,0.00324737,3222.1,3221.3,1.74728405]
[1768854407080,0.00324737,3222.1,3221.5,1.74141511]
[1768854407280,1.44099912,3223.1,3221.7,1.74141511]
[1768854407473,0.81150887,3223.0,3221.7,1.74141511]
[1768854407674,0.81150887,3222.9,3221.7,1.74141511]
[1768854407874,0.81150887,3222.8,3221.7,1.74141511]
[1768854408076,0.15521,3223.1,3221.7,1.74141511]
[1768854408384,2.09713003,3223.0,3221.7,0.45562599]
[1768854408577,0.81134091,3222.9,3221.7,0.45562599]
[1768854408777,0.81134091,3222.8,3221.7,0.45562599]
[1768854408977,1.28578912,3223.0,3221.7,0.45562599]
[1768854409184,0.81134041,3222.9,3221.7,0.45562599]
[1768854409483,0.81134041,3222.8,3221.7,0.45562599]
[1768854409682,1.28578912,3223.0,3221.7,0.45562599]
[1768854409978,0.81123608,3222.9,3221.7,0.45562599]
[1768854410184,0.81123608,3222.8,3221.7,0.45562599]
[1768854410375,1.28578912,3223.0,3221.7,0.45562599]
[1768854410574,0.81115859,3222.9,3221.7,0.45562599]
[1768854410774,0.81115859,3222.8,3221.7,0.45562599]
[1768854410977,1.28578912,3223.0,3221.7,0.45562599]
[1768854411170,0.81115859,3222.9,3221.7,0.45562599]
[1768854411374,1.28578912,3223.0,3221.7,0.45562599]
[1768854411375,0.81115859,3222.8,3221.7,0.45562599]
[1768854411582,1.28578912,3223.0,3221.7,0.45562599]
[1768854411789,0.81110022,3222.9,3221.7,0.45562599]
[1768854412082,2.09688934,3222.8,3221.7,0.45562599]
[1768854412278,1.28578912,3222.6,3221.3,42.69671511]
[1768854415682,1.28578912,3222.6,3221.4,0.4735079]
[1768854422385,1.28578912,3222.8,3221.4,0.4735079]
[1768854424885,0.59801462,3223.1,3221.4,0.4735079]
[1768854425084,0.81152955,3223.0,3221.4,0.4735079]
[1768854425386,0.81152955,3222.9,3221.4,0.4735079]
[1768854425685,0.81152955,3222.8,3221.4,0.4735079]
[1768854425885,0.59801462,3223.1,3221.4,0.4735079]
[1768854426085,0.81162384,3223.0,3221.4,0.4735079]
[1768854426285,0.81162384,3222.9,3221.4,0.4735079]
[1768854426473,0.81162384,3222.8,3221.4,0.4735079]
[1768854426677,0.59801462,3223.1,3221.4,0.4735079]
[1768854426885,0.81173733,3223.0,3221.4,0.4735079]
[1768854427085,0.81173733,3222.9,3221.5,0.4735079]
[1768854427385,0.59801462,3223.1,3221.5,0.4735079]
[1768854427582,0.81179097,3223.0,3221.5,0.4735079]
[1768854427885,0.81179097,3222.9,3221.5,0.4735079]
[1768854428084,1.735,3223.0,3221.5,0.4735079]
[1768854428283,0.81186106,3222.9,3221.5,0.4735079]
[1768854428483,1.735,3223.0,3221.5,0.4735079]
[1768854428786,0.81186105,3222.9,3221.5,0.4735079]
[1768854428979,1.735,3223.0,3221.5,0.4735079]
[1768854429179,0.81186137,3222.9,3221.5,0.4735079]
[1768854429380,1.735,3223.0,3221.5,0.4735079]
[1768854429681,0.81195629,3222.9,3221.5,0.4735079]
[1768854429887,1.735,3223.0,3221.5,0.4735079]
[1768854430080,0.81195628,3222.9,3221.5,0.4735079]
[1768854430385,1.735,3223.0,3221.5,0.4735079]
[1768854430584,0.81204166,3222.9,3221.5,0.4735079]
[1768854430787,1.735,3223.0,3221.5,0.4735079]
[1768854431085,0.81204116,3222.9,3221.5,0.4735079]
[1768854431284,1.735,3223.0,3221.5,0.4735079]
[1768854431487,0.81206508,3222.9,3221.5,0.4735079]
[1768854431685,1.735,3223.0,3221.5,0.4735079]
[1768854431887,0.8120651,3222.9,3221.5,0.4735079]
[1768854432088,1.735,3223.0,3221.5,0.4735079]
[1768854432288,0.81210186,3222.9,3221.5,0.4735079]
[1768854432587,1.735,3223.0,3221.5,0.4735079]
[1768854432789,0.81210185,3222.9,3221.5,0.4735079]
[1768854432990,1.735,3223.0,3221.5,0.4735079]
[1768854433191,0.81210187,3222.9,3221.5,0.4735079]
[1768854433390,0.81210187,3222.8,3221.5,0.4735079]
[1768854433592,1.735,3223.0,3221.5,0.4735079]
[1768854433793,0.81215311,3222.9,3221.5,0.4735079]
[1768854433994,0.81215311,3222.8,3221.5,0.4735079]
[1768854434193,1.735,3223.0,3221.5,0.4735079]
[1768854434394,0.81222064,3222.9,3221.5,0.4735079]
[1768854434597,0.81222064,3222.8,3221.5,0.4735079]
[1768854434798,1.735,3223.0,3221.5,0.4735079]
[1768854435093,0.81222066,3222.9,3221.5,0.4735079]
[1768854435296,0.81222066,3222.8,3221.5,0.4735079]
[1768854435488,1.735,3223.0,3221.5,0.4735079]
[1768854435688,0.81231031,3222.9,3221.5,0.4735079]
[1768854435889,0.81231031,3222.8,3221.5,0.4735079]
[1768854436089,1.735,3223.0,3221.5,0.4735079]
[1768854436290,0.81242697,3222.9,3221.5,0.4735079]
[1768854436594,0.81242697,3222.8,3221.5,0.4735079]
[1768854436794,1.735,3223.0,3221.5,0.4735079]
[1768854436998,0.81242711,3222.9,3221.5,0.4735079]
[1768854437198,0.81242711,3222.8,3221.5,0.4735079]
[1768854437400,2.17640505,3223.0,3221.5,0.4735079]
[1768854437694,0.81252871,3222.9,3221.5,0.4735079]
[1768854437891,0.81252871,3222.8,3221.5,0.4735079]
[1768854438090,2.17640505,3223.0,3221.5,0.4735079]
[1768854438290,0.8125243,3222.9,3221.5,0.4735079]
[1768854438494,0.8125243,3222.8,3221.5,0.4735079]
[1768854438694,2.17640505,3223.0,3221.5,0.4735079]
[1768854438995,0.81252398,3222.9,3221.5,0.4735079]
[1768854439194,0.81252398,3222.8,3221.5,0.4735079]
[1768854439394,2.17640505,3223.0,3221.5,0.4735079]
[1768854439595,0.44140505,3222.8,3221.4,0.15529]
[1768854439794,0.81251917,3222.7,3221.4,0.15529]
[1768854441399,0.81251917,3222.7,3221.4,0.6287979]
[1768854441806,1.735,3223.0,3221.4,0.6287979]
[1768854442001,0.812446,3222.9,3221.4,0.6287979]
[1768854442299,0.812446,3222.8,3221.4,0.6287979]
[1768854442497,0.812446,3222.7,3221.4,0.6287979]
[1768854442701,1.735,3223.0,3221.4,0.6287979]
[1768854442902,0.81244765,3222.9,3221.4,0.6287979]
[1768854443104,0.81244765,3222.8,3221.4,0.6287979]
[1768854443297,0.81244765,3222.7,3221.4,0.6287979]
[1768854443599,1.735,3223.0,3221.4,0.6287979]
[1768854443897,0.81245115,3222.9,3221.4,0.6287979]
[1768854444096,0.81245115,3222.8,3221.4,0.6287979]
[1768854444300,0.81245115,3222.7,3221.4,0.6287979]
[1768854444511,1.735,3223.0,3221.4,0.6287979]
[1768854444704,0.81245493,3222.9,3221.4,0.6287979]
[1768854445002,0.81245493,3222.8,3221.4,0.6287979]
[1768854445202,0.81245493,3222.7,3221.4,0.6287979]
[1768854445401,1.735,3223.0,3221.4,0.6287979]
[1768854445601,0.81298284,3222.9,3221.4,0.6287979]
[1768854445902,0.81298284,3222.8,3221.4,0.6287979]
[1768854446102,0.81298284,3222.7,3221.4,0.6287979]
[1768854446397,1.735,3223.0,3221.4,0.6287979]
[1768854446602,0.8129865,3222.9,3221.4,0.6287979]
[1768854446804,0.8129865,3222.8,3221.4,0.6287979]
[1768854447110,1.735,3223.0,3221.4,0.6287979]
[1768854447111,0.8129865,3222.7,3221.4,0.6287979]
[1768854447311,1.735,3223.0,3221.4,0.6287979]
[1768854447506,0.81298994,3222.9,3221.4,0.6287979]
[1768854447809,0.81298994,3222.8,3221.4,0.6287979]
[1768854448010,0.81298994,3222.7,3221.4,0.6287979]
[1768854448208,1.735,3223.0,3221.4,0.6287979]
[1768854448408,0.81299328,3222.9,3221.4,0.6287979]
[1768854448708,0.81299328,3222.8,3221.4,0.6287979]
[1768854448903,0.81299328,3222.7,3221.4,0.6287979]
[1768854449102,1.735,3223.0,3221.4,0.6287979]
[1768854449317,0.81299668,3222.9,3221.4,0.6287979]
[1768854449516,0.81299668,3222.8,3221.4,0.6287979]
[1768854449709,0.81299668,3222.7,3221.4,0.6287979]
[1768854449914,1.735,3223.0,3221.4,0.6287979]
[1768854450117,0.8129967,3222.9,3221.4,0.6287979]
[1768854450415,0.8129967,3222.8,3221.4,0.6287979]
[1768854450615,0.8129967,3222.7,3221.4,0.6287979]
[1768854450816,1.735,3223.0,3221.4,0.6287979]
[1768854451010,0.81300403,3222.9,3221.4,0.6287979]
[1768854451212,0.81300403,3222.8,3221.4,0.6287979]
[1768854451410,0.81300403,3222.7,3221.4,0.6287979]
[1768854451620,1.735,3223.0,3221.4,0.6287979]
[1768854451823,0.81300733,3222.9,3221.4,0.6287979]
[1768854452022,0.81300733,3222.8,3221.4,0.6287979]
[1768854452222,0.81300733,3222.7,3221.4,0.6287979]
[1768854452414,1.735,3223.0,3221.4,0.6287979]
[1768854452614,0.81301034,3222.9,3221.4,0.6287979]
[1768854452814,0.81301034,3222.8,3221.4,0.6287979]
[1768854453023,0.81301034,3222.7,3221.4,0.6287979]
[1768854453223,1.735,3223.0,3221.4,0.6287979]
[1768854453421,0.81301312,3222.9,3221.4,0.6287979]
[1768854453618,0.81301312,3222.8,3221.4,0.6287979]
[1768854453818,0.81301312,3222.7,3221.4,0.6287979]
[1768854454019,1.735,3223.0,3221.4,0.6287979]
[1768854454321,0.81301627,3222.9,3221.4,0.6287979]
[1768854454519,0.81301627,3222.8,3221.4,0.6287979]
[1768854454721,0.81301627,3222.7,3221.4,0.6287979]
[1768854454920,1.735,3223.0,3221.4,0.6287979]
[1768854455220,0.81301628,3222.9,3221.4,0.6287979]
[1768854455415,0.81301628,3222.8,3221.4,0.6287979]
[1768854455616,0.81301628,3222.7,3221.4,0.6287979]
[1768854455817,1.735,3223.0,3221.5,0.45753984]
[1768854456017,0.81301917,3222.9,3221.5,0.45753984]
[1768854456312,0.81301917,3222.8,3221.5,0.45753984]
[1768854456514,0.81301917,3222.7,3221.5,0.45753984]
[1768854456726,1.735,3223.0,3221.5,0.45753984]
[1768854456929,0.81302194,3222.9,3221.5,0.45753984]
[1768854457121,0.81302194,3222.8,3221.5,0.45753984]
[1768854457321,0.81302194,3222.7,3221.5,0.45753984]
[1768854457523,1.735,3223.0,3221.5,0.45753984]
[1768854457718,0.81301982,3222.9,3221.5,0.45753984]
[1768854457924,0.81301982,3222.8,3221.5,0.45753984]
[1768854458118,0.81301982,3222.7,3221.5,0.45753984]
[1768854458314,1.735,3223.0,3221.5,0.45753984]
[1768854458518,0.81302984,3222.9,3221.5,0.45753984]
[1768854458724,0.81302984,3222.8,3221.5,0.45753984]
[1768854458924,0.81302984,3222.7,3221.5,0.45753984]
[1768854459121,1.735,3223.0,3221.5,0.45753984]
[1768854459322,0.8130409,3222.9,3221.5,0.45753984]
[1768854459622,0.8130409,3222.8,3221.5,0.45753984]
[1768854459818,0.8130409,3222.7,3221.5,0.45753984]
[1768854460018,1.735,3223.0,3221.5,0.45753984]
[1768854460220,0.81305306,3222.9,3221.5,0.45753984]
[1768854460519,0.81305306,3222.8,3221.5,0.45753984]
[1768854460820,0.81305306,3222.7,3221.5,0.45753984]
[1768854461018,1.735,3223.0,3221.5,0.45753984]
[1768854461226,0.81305307,3222.9,3221.5,0.45753984]
[1768854461419,0.81305307,3222.8,3221.5,0.45753984]
[1768854461622,0.81305307,3222.7,3221.5,0.45753984]
[1768854461914,1.735,3223.0,3221.5,0.45753984]
[1768854462116,0.81306766,3222.9,3221.5,0.45753984]
[1768854462330,0.81306766,3222.8,3221.5,0.45753984]
[1768854462534,0.81306766,3222.7,3221.5,0.45753984]
[1768854462723,1.735,3223.0,3221.5,0.45753984]
[1768854462924,0.81308522,3222.9,3221.5,0.45753984]
[1768854463134,0.81308522,3222.8,3221.5,0.45753984]
[1768854463328,0.81308522,3222.7,3221.5,0.45753984]
[1768854463534,1.735,3223.0,3221.5,0.45753984]
[1768854463830,0.81309874,3222.9,3221.5,0.45753984]
[1768854464021,0.81309874,3222.8,3221.5,0.45753984]
[1768854464223,0.81309874,3222.7,3221.5,0.45753984]
[1768854464528,1.735,3223.0,3221.5,0.45753984]
[1768854464729,0.8131167,3222.9,3221.5,0.45753984]
[1768854464926,0.8131167,3222.8,3221.5,0.45753984]
[1768854465126,0.8131167,3222.7,3221.5,0.45753984]
[1768854465326,1.735,3223.0,3221.5,0.45753984]
[1768854465525,0.81313592,3222.9,3221.5,0.45753984]
[1768854465725,0.81313592,3222.8,3221.5,0.45753984]
[1768854465926,0.81313592,3222.7,3221.5,0.45753984]
[1768854466128,1.735,3223.0,3221.5,0.45753984]
[1768854466325,0.81315097,3222.9,3221.5,0.45753984]
[1768854466527,2.55515097,3222.8,3221.5,0.45753984]
[1768854466728,0.81315097,3222.7,3221.5,0.45753984]
[1768854468536,0.43792822,3224.9,3223.4,0.15519]
[1768854468834,0.43792822,3224.9,3223.5,3.49819]
[1768854469037,0.43792822,3224.9,3223.6,2.22643952]
[1768854469332,0.43792822,3224.9,3223.5,44.29819]
[1768854469527,0.44168474,3224.9,3223.5,44.30123262]
[1768854474930,0.44168474,3224.9,3223.6,0.15518]
[1768854475136,0.44168474,3224.9,3223.7,0.15518]
[1768854480133,0.44168474,3224.9,3223.8,0.15518]
[1768854483134,0.4928652,3225.4,3224.4,1.28545545]
[1768854483335,0.4928652,3225.4,3224.3,0.15515]
[1768854484140,0.49511052,3225.4,3224.3,0.15515]
[1768854484936,0.49511052,3225.4,3224.3,1.43834783]
[1768854489747,0.4928652,3225.3,3224.3,0.15515]
[1768854497647,0.4928652,3225.3,3224.3,1.43834783]
[1768854497843,0.4928652,3225.3,3224.5,1.28319783]
[1768854498244,0.4928652,3225.3,3224.3,3.66478735]
[1768854500343,0.00224532,3225.4,3224.5,1.28319783]
[1768854507549,0.00224532,3225.4,3224.4,2.22643952]
[1768854512355,0.00224532,3225.4,3224.5,2.22643952]
[1768854516961,0.5362705,3225.4,3224.3,0.15515]
[1768854517166,1.81946833,3225.4,3224.3,0.15515]
[1768854519068,0.5362705,3225.4,3224.3,1.43834783]
[1768854523661,0.5362705,3225.4,3224.3,0.15515]
[1768854526865,0.5362705,3225.4,3224.6,2.22643952]
[1768854527266,0.57511357,3225.3,3224.6,2.22643952]
[1768854531868,0.57511357,3225.3,3224.5,2.22643952]
[1768854532778,1.28319783,3225.2,3224.5,2.22643952]
[1768854533979,1.8583114,3225.3,3224.5,2.22643952]
[1768854538779,1.8583114,3225.3,3224.4,2.22643952]
[1768854544285,1.92523531,3225.1,3224.3,2.22643952]
[1768854544678,0.64203748,3225.0,3224.0,5.01481102]
[1768854544880,0.64203748,3225.0,3224.0,2.22643952]
[1768854545787,0.64203748,3225.0,3223.7,45.62637783]
[1768854546884,0.64203748,3225.0,3223.7,44.34318]
[1768854548696,0.64203748,3225.0,3223.5,0.00304262]
[1768854548881,0.64203748,3224.7,3223.5,0.00304262]
[1768854551396,0.64203748,3225.1,3223.5,1.2866951]
[1768854552895,0.64203748,3225.1,3223.5,1.4418851]
[1768854553493,0.64203748,3225.1,3223.8,0.15517]
[1768854559992,0.64203748,3225.1,3223.5,1.74505929]
[1768854559993,0.00224532,3225.4,3223.9,0.62438184]
[1768854560294,0.6442828,3225.4,3223.9,0.15517]
[1768854570006,0.6442828,3225.4,3223.9,2.38160952]
[1768854575020,0.7993828,3225.4,3223.9,2.22643952]
[1768854575221,0.7993828,3225.4,3223.5,0.00304262]
[1768854575222,0.6654069,3224.8,3223.7,2.22643952]
[1768854575410,0.6654069,3224.8,3223.5,2.79141412]
[1768854575411,0.6654069,3224.8,3223.5,2.22948214]
[1768854581125,0.6654069,3224.8,3223.5,0.00304262]
[1768854589533,0.67671244,3224.4,3223.5,0.00304262]
[1768854601751,3.91217439,3226.1,3223.5,0.00304262]
[1768854601752,0.70483279,3224.8,3223.5,0.00304262]
[1768854602042,0.70483279,3225.2,3223.5,0.57624144]
[1768854602234,0.7834746,3225.1,3223.5,0.57624144]
[1768854602434,0.78361047,3225.0,3223.5,0.57624144]
[1768854602636,0.70483279,3225.2,3223.5,0.57624144]
[1768854602842,1.48844045,3225.1,3223.5,0.57624144]
[1768854603045,0.70483279,3225.1,3223.5,0.57624144]
[1768854603445,0.78377471,3225.0,3223.5,0.57624144]
[1768854603745,0.70483279,3225.1,3223.5,0.57624144]
[1768854603944,0.78377449,3225.0,3223.5,0.57624144]
[1768854604145,0.70483279,3225.1,3223.5,0.57624144]
[1768854604447,0.78376834,3225.0,3223.5,2.80268096]
[1768854604647,0.70483279,3225.1,3223.5,2.80268096]
[1768854604842,0.78396662,3225.0,3223.5,2.80268096]
[1768854605043,0.70483279,3225.1,3223.5,2.80268096]
[1768854605246,0.7839666,3225.0,3223.5,2.80268096]
[1768854605439,0.70483279,3225.1,3223.5,2.80268096]
[1768854605640,0.78400633,3225.0,3223.5,2.80268096]
[1768854605837,0.70483279,3225.1,3223.5,2.80268096]
[1768854606044,0.78400635,3225.0,3223.5,2.80268096]
[1768854606246,0.70483279,3225.1,3223.5,2.80268096]
[1768854606441,0.78398223,3225.0,3223.5,2.80268096]
[1768854606745,0.70483279,3225.1,3223.5,2.22948214]
[1768854606941,0.70483279,3224.9,3223.5,2.22948214]
[1768854607147,0.70483279,3224.8,3223.5,2.22948214]
[1768854607547,0.70483279,3224.8,3223.5,0.00304262]
[1768854607745,0.70483279,3224.8,3223.5,2.22948214]
[1768854608944,0.70483279,3224.6,3223.5,2.22948214]
[1768854609543,0.70483279,3224.6,3223.5,0.00304262]
[1768854614851,1.9888644,3224.5,3223.5,0.00304262]
[1768854615750,0.70483279,3224.5,3223.5,0.00304262]
[1768854615950,1.9888644,3224.9,3223.5,3.51351375]
[1768854618757,0.70483279,3224.8,3223.5,3.51351375]
[1768854621869,0.00224532,3225.4,3223.9,0.59996013]
[1768854622157,0.00224532,3225.4,3223.5,0.00304262]
[1768854622158,0.00224532,3225.4,3224.2,1.43919161]
[1768854624648,1.28403161,3225.3,3224.0,2.22643952]
[1768854624863,1.28403161,3224.9,3223.6,2.38162952]
[1768854625164,0.71785454,3225.1,3223.7,1.28403161]
[1768854627871,0.00224532,3225.4,3223.7,1.28403161]
[1768854627872,2.00188615,3225.0,3223.7,1.28403161]
[1768854631872,2.00188615,3225.0,3223.8,2.22643952]
[1768854632967,2.00188615,3224.8,3223.8,2.22643952]
[1768854633271,2.00188615,3224.8,3223.6,0.15519]
[1768854633272,1.28403161,3224.5,3223.6,0.15519]
[1768854633671,0.71785454,3224.7,3223.6,0.15519]
[1768854634166,2.00188615,3225.1,3223.6,1.43922161]
[1768854634359,0.71785454,3225.0,3223.6,1.43922161]
[1768854634966,2.00188615,3224.9,3223.6,1.43922161]
[1768854635160,0.71785454,3224.8,3223.6,1.43922161]
[1768854636168,2.00188615,3224.7,3223.6,0.15519]
[1768854636367,0.71785454,3224.6,3223.6,0.15519]
[1768854638875,0.71785454,3224.6,3223.5,0.00304262]
[1768854640174,0.71785454,3224.4,3223.5,0.00304262]
[1768854640375,2.00188615,3224.3,3223.5,0.00304262]
[1768854641070,1.99010897,3224.0,3223.0,0.15521]
[1768854641570,0.70607736,3223.9,3222.9,40.8]
[1768854641764,0.70607736,3223.9,3222.5,2.22643952]
[1768854642067,1.28403161,3225.0,3222.3,0.15524]
[1768854642068,1.99010897,3223.7,3222.3,1.43927161]
[1768854642269,1.99010897,3223.7,3222.5,0.00349702]
[1768854642866,1.28403161,3223.3,3222.5,0.00349702]
[1768854643174,1.28403161,3223.1,3222.5,0.00349702]
[1768854643374,0.70607736,3223.2,3222.5,0.0005488]
[1768854643969,0.70607736,3223.0,3222.5,0.0005488]
[1768854644169,0.70607736,3222.8,3221.4,2.22643952]
[1768854644380,0.70607736,3222.8,3221.4,1.28403161]